[Event "57th Biel Festival MTO 2024"]
[White "Juksta,Karolis"]
[Black "Xiao,Tong"]
[Site "Biel"]
[Round "4.8"]
[Annotator "TA"]
[Result "1/2-1/2"]
[Date "2024.07.18"]
[WhiteElo "2400"]
[BlackElo "2518"]
[PlyCount "38"]
[TimeControl "60"]

{[%evp 19,38,-14,0,0,-7,-13,0,0,0,0,0,0,0,0,0,0,0,0,0,0,0]} 1. d4 {[%emt 0:4:23]} Nf6 {[%emt 0:0:19]} 2. c4 {[%emt 0:0:6]} e6 {[%emt 0:0:8]} 3. Nc3 {[%emt 0:0:12]} Bb4 {[%emt 0:0:10]} 4. e3 {[%emt 0:0:7]} O-O {[%emt 0:0:42]} 5. Bd3 {[%emt 0:0:11]} d5 {[%emt 0:0:59]} 6. a3 {[%emt 0:0:25]} Bxc3+ {[%emt 0:0:14]} 7. bxc3 {[%emt 0:0:6]} dxc4 {[%emt 0:0:11]} 8. Bxc4 {[%emt 0:0:6]} c5 {[%emt 0:0:8]} 9. Ne2 {[%emt 0:0:12][%cal Bg1e2,Be2g3,Bg3h5][%mdl 32]} Qc7 {[%emt 0:0:29]} 10. Bd3 {[%emt 0:0:18]} Nc6 {[%emt 0:0:27] The position is equal.} 11. O-O {[%emt 0:0:39]} e5 {[%emt 0:0:29]} 12. Ng3 {[%emt 0:0:30]} cxd4 {[%emt 0:2:39]} 13. cxd4 {[%emt 0:0:32]} exd4 {[%emt 0:0:7]} 14. exd4 {[%emt 0:0:28]} Rd8 {[%emt 0:0:34]} 15. Bg5 {[%emt 0:9:52] [#] Bxf6 would now be deadly. A strong pair of Bishops.} Qd6 {[%emt 0:0:44]} 16. Nh5 {[%emt 0:1:14] And now Bxf6 would win.} Ng4 {[%emt 0:0:36][%csl Gg4][%cal Rd6h2]} 17. Ng3 {[%emt 0:0:17]} Nf6 {[%emt 0:0:47]} 18. Nh5 {[%emt 0:0:16] Strongly threatening Bxf6.} Ng4 {[%emt 0:0:30][%csl Gg4][%cal Rd6h2] [#]} 19. Ng3 {[%emt 0:0:18]} Nf6 {[%emt 0:4:53] A rather calm draw.   Weighted Error Value: White=0.01 (flawless) /Black=0.01 (flawless) .  OK:         	White=4     	Black=7} 1/2-1/2

[Event "57th Biel Festival MTO 2024"]
[White "Sokolovsky,Yahli"]
[Black "Kalogridis,Antonios"]
[Site "Biel"]
[Round "4.9"]
[Annotator "TA"]
[Result "1-0"]
[Date "2024.07.18"]
[WhiteElo "2492"]
[BlackElo "2391"]
[PlyCount "105"]
[TimeControl "60"]

{[%evp 16,105,24,21,35,29,35,46,31,24,37,31,45,36,46,10,10,5,8,-10,-4,-5,0,-5,-16,-18,0,0,0,0,0,0,0,0,0,0,0,0,0,0,0,0,19,28,41,27,34,27,49,25,71,58,54,54,87,87,91,90,95,9,108,68,149,154,156,136,222,198,228,210,220,0,217,180,176,177,336,344,306,331,720,724,863,814,850,915,1726,1792,1833,1830,2382,2241]} 1. e4 {[%emt 0:1:27]} c5 {[%emt 0:0:3]} 2. Nf3 {[%emt 0:0:9]} Nc6 {[%emt 0:0:3]} 3. Bb5 {[%emt 0:0:7]} d6 {[%emt 0:0:4]} 4. O-O {[%emt 0:0:33]} Bd7 {[%emt 0:0:3]} 5. Re1 {[%emt 0:0:7]} Nf6 {[%emt 0:0:5]} 6. c3 {[%emt 0:0:32][%cal Bc2c3,Bc3d4,Bd4d5][%mdl 32]} a6 {[%emt 0:0:5]} 7. Bf1 {[%emt 0:1:44]} Bg4 {[%emt 0:0:6]} 8. d4 {[%emt 0:0:30]} cxd4 {[%emt 0:0:6]} 9. cxd4 {[%emt 0:0:5]} e5 {[%emt 0:0:4]} 10. d5 {[%emt 0:0:38]} Nd4 {[%emt 0:0:5]} 11. Be3 {[%emt 0:1:0]} Nxf3+ {[%emt 0:0:5] White is slightly better.} 12. gxf3 {[%emt 0:0:6]} Bd7 {[%emt 0:0:2]} 13. a4 {[%emt 0:6:51]} Be7 {[%emt 0:0:8]} 14. Nd2 {[%emt 0:0:41]} O-O {[%emt 0:0:14]} 15. Nc4 {[%emt 0:1:2]} Nh5 {[%emt 0:0:6]} 16. Nb6 {[%emt 0:2:50]} Rb8 {[%emt 0:0:11]} 17. Rc1 {[%emt 0:6:39]} Bg5 {[%emt 0:22:48] [#] Hoping for ...Bxe3.} 18. Nxd7 $1 {[%emt 0:6:6]} Bxe3 {[%emt 0:0:7]} 19. fxe3 {[%emt 0:0:18]} Qxd7 {[%emt 0:0:1]} 20. Re2 {[%emt 0:5:3]} Rbc8 {[%emt 0:9:0]} 21. Rec2 {[%emt 0:0:55]} g6 {[%emt 0:0:6]} 22. b3 {[%emt 0:11:30]} Kg7 {[%emt 0:9:38]} 23. Kh1 {[%emt 0:2:34]} Rfd8 {[%emt 0:5:43]} 24. Qd2 {[%emt 0:4:43]} Nf6 {[%emt 0:2:56]} 25. Qg2 {[%emt 0:1:24]} Qe8 {[%emt 0:13:3]} 26. a5 {[%emt 0:5:46]} Rxc2 {[%emt 0:2:53]} 27. Qxc2 {[%emt 0:0:18]} Qe7 {[%emt 0:0:6]} 28. Bh3 {[%emt 0:12:50]} Ne8 {[%emt 0:3:40] Wards off Qc7} 29. Bc8 {[%emt 0:0:21] Black is weak on the light squares} Qf6 {[%emt 0:3:21]} 30. Qd1 {[%emt 0:3:24]} Qe7 {[%emt 0:0:30]} 31. Rc4 {[%emt 0:2:2]} h5 {[%emt 0:8:9]} 32. b4 {[%emt 0:3:11]} Nf6 {[%emt 0:2:54]} (32... Kh6 $1 $11 {is more appropriate.} )33. Qc2 {[%emt 0:2:8]} Ne8 {[%emt 0:0:54] Prevents Rc7} 34. Rc3 {[%emt 0:0:17]} Qf6 {[%emt 0:1:30]} 35. Kg2 {[%emt 0:0:42]} Qe7 {[%emt 0:1:1]} 36. Kf1 {[%emt 0:0:31]} Qf6 {[%emt 0:0:18]} 37. Ke2 {[%emt 0:2:1]} ({Better is} 37. Qg2 $16 )Qe7 {[%emt 0:0:29]} (37... Qg5 $11 )38. Kd2 {[%emt 0:1:4][%cal Be2d2,Bd2c1,Bc1b2,Bb2b3,Bb3a4,Ba4b3,Bb3a3,Ba3b4,Bb4b5,Bb5b6][%mdl 32]} Kf8 {[%emt 0:0:43]} (38... Qg5 $14 )39. Kc1 $16 {[%emt 0:1:1]} Kg7 {[%emt 0:0:6]} 40. Kb2 {[%emt 0:0:36]} Kf8 {[%emt 0:0:17]} (40... Qf6 $16 )41. Kb3 {[%emt 0:50:33]} Kg7 {[%emt 0:51:10]} 42. Ka4 {[%emt 0:3:50]} Kf8 {[%emt 0:2:14]} 43. Kb3 {[%emt 0:8:0]} Kg7 {[%emt 0:1:8]} 44. Ka3 {[%emt 0:0:14]} Kg8 {[%emt 0:0:40]} 45. b5 {[%emt 0:2:3]} axb5 $2 {[%emt 0:12:46] [#]} (45... Kg7 {keeps fighting.} 46. b6 (46. bxa6 bxa6 47. Ka2 Qh4 $14 )Kh6 )46. Kb4 $18 {[%emt 0:0:43]} Kg7 {[%emt 0:7:32]} 47. Kxb5 {[%emt 0:0:53]} Nf6 $2 {[%emt 0:3:44]} (47... Qf6 48. Kb6 (48. Bxb7 Qe7 $18 )Qe7 )48. Rc7 {[%emt 0:2:39] White is clearly winning.} Qe8+ {[%emt 0:1:2]} 49. Kb6 {[%emt 0:0:37]} h4 {[%emt 0:2:20]} 50. Qc4 {[%emt 0:5:11] Active counter play!} (50. Kxb7 $2 {too greedy.} Qb5+ 51. Ka7 Qxa5+ 52. Kb7 Qb5+ 53. Ka7 Qf1 $19 )Nd7+ {[%emt 0:0:0]} 51. Bxd7 {[%emt 0:0:0]} Rxd7 {[%emt 0:0:0]} 52. Qb5 {[%emt 0:0:0]} Qa8 {[%emt 0:0:0]} 53. Rxd7 {[%emt 0:0:23] Weighted Error Value: White=0.16 (very precise) /Black=0.20 (precise) .  Mistake:       	White=1     	Black=6      Inaccurate:     	White=2     	Black=1      OK:         	White=19    	Black=12     Best:        	White=1     	Black=3      Strong:       	White=1     	---} 1-0

[Event "57th Biel Festival MTO 2024"]
[White "Tahay,Alexis"]
[Black "Madaminov,Mukhiddin"]
[Site "Biel"]
[Round "4.10"]
[Annotator "TA"]
[Result "0-1"]
[Date "2024.07.18"]
[WhiteElo "2375"]
[BlackElo "2517"]
[PlyCount "116"]
[TimeControl "60"]

{[%evp 30,116,43,41,36,39,35,27,53,30,30,37,31,0,16,-186,-195,-187,-210,-203,-191,-273,-266,-236,-220,-229,-230,-459,-466,-478,-446,-437,-239,-270,-264,-258,-264,-311,-194,-194,-48,-48,-55,-55,-47,-369,-369,-533,-521,-555,-525,-539,-454,-576,-425,-395,-395,-568,-450,-2512,-2193,-29965,-29966,-29967,-29968,-29968,-29969,-29968,-29969,-29970,-29971,-29970,-29971,-29972,-29973,-29972,-29974,-29974,-29970,-29970,-29971,-29970,-29971,-29971,-29972,-29971,-29970,-29978,-29974]} 1. e4 {[%emt 0:3:36]} e5 {[%emt 0:0:43]} 2. Nf3 {[%emt 0:0:8]} Nc6 {[%emt 0:1:18]} 3. Bb5 {[%emt 0:0:6]} a6 {[%emt 0:0:48]} 4. Ba4 {[%emt 0:0:5]} Nf6 {[%emt 0:0:54]} 5. O-O {[%emt 0:1:3]} Bc5 {[%emt 0:0:25]} 6. c3 {[%emt 0:1:8]} b5 {[%emt 0:0:30]} 7. Bc2 {[%emt 0:0:22]} d5 {[%emt 0:0:10] C78: Ruy Lopez: Archangelsk and Möller Defences.} 8. a4 {[%emt 0:0:10]} dxe4 {[%emt 0:0:22]} 9. axb5 {[%emt 0:0:6]} exf3 {[%emt 0:0:39]} 10. Qxf3 {[%emt 0:0:12]} e4 {[%emt 0:0:8]} 11. Bxe4 {[%emt 0:0:6]} Ne5 {[%emt 0:0:11]} 12. Qe2 {[%emt 0:0:5]} O-O {[%emt 0:0:22]} 13. d4 {[%emt 0:0:14]} Bg4 {[%emt 0:0:17]} 14. Qc2 {[%emt 0:0:6]} Nxe4 {[%emt 0:0:7]} 15. Qxe4 {[%emt 0:0:4]} Bd7 {[%emt 0:0:24]} 16. bxa6 {[%emt 0:1:37]} Bb5 {[%emt 0:0:24]} 17. Qxe5 {[%emt 0:0:9]} Bxf1 {[%emt 0:0:13]} 18. Kxf1 {[%emt 0:0:23]} Ba7 $1 {[%emt 0:0:9]} 19. Qf5 {[%emt 0:2:15]} Re8 {[%emt 0:0:16]} 20. g3 {[%emt 0:4:30]} Rb8 {[%emt 0:0:22]} 21. Qf3 $146 {[%emt 0:18:22]} (21. Nd2 $5 Rb6 $8 22. Kg2 $11 )({Predecessor:} 21. Nd2 Rb6 22. Qd3 Qd5 23. Nf3 Rf6 24. Kg2 Re1 25. Ra5 Qxa5 26. Nxe1 Qxa6 27. Qxa6 Rxa6 28. Kf3 {1-0 Bulbarela Garcia,C (2198)-Glopper,J (2191) MEX-NED email 2021 [12]} )Rb6 {[%emt 0:4:59]} 22. Ra5 $2 {[%emt 0:16:3]} (22. Kg2 $11 {and White stays safe.} )Rf6 $1 $19 {[%emt 0:4:1]} (22... Qc8 23. Be3 $17 )23. Rf5 {[%emt 0:1:14]} Qc8 $1 {[%emt 0:0:43]} 24. g4 {[%emt 0:15:4]} (24. Rxf6 $2 Qh3+ 25. Qg2 Re1+ (25... Qxg2+ 26. Kxg2 gxf6 27. Na3 $18 )26. Kxe1 Qxg2 $19 )Rxf5 {[%emt 0:0:40]} (24... Rxa6 25. Na3 $11 (25. Rxf7 $2 Ra1 $19 ))25. Qxf5 {[%emt 0:0:20]} (25. gxf5 $142 Qxa6+ 26. Kg2 )Qxa6+ $19 {[%emt 0:0:12]} 26. Kg2 {[%emt 0:0:2]} Qb7+ {[%emt 0:11:56]} (26... Re1 27. Be3 )27. Kg3 {[%emt 0:3:48]} c5 {[%emt 0:8:34]} 28. d5 $2 {[%emt 0:2:22]} (28. Bf4 )Bb8+ $19 {[%emt 0:3:59]} (28... g6 29. Qd3 Bb8+ 30. Kg2 $19 )29. Kg2 {[%emt 0:5:1]} g6 {[%emt 0:6:25]} 30. Qd3 {[%emt 0:5:52]} Qc7 {[%emt 0:1:1]} (30... Re1 $142 31. Bh6 Qc8 (31... Qxb2 32. Nd2 $15 )(31... c4 32. Qxc4 Re5 33. Nd2 $11 ))31. Kf1 $19 {[%emt 0:2:17]} Qxh2 {[%emt 0:14:27]} 32. Qf3 {[%emt 0:0:42]} f5 {[%emt 0:4:33]} 33. g5 {[%emt 0:3:20]} Qe5 {[%emt 0:1:47]} 34. Qe3 {[%emt 0:2:21]} Rd8 {[%emt 0:10:33]} (34... Kf8 $19 35. Qxe5 Rxe5 (35... Bxe5 36. Na3 $17 ))35. c4 $15 {[%emt 0:1:53]} f4 {[%emt 0:5:21]} 36. Qxe5 {[%emt 0:9:15]} Bxe5 {[%emt 0:0:2]} 37. Na3 $2 {[%emt 0:5:20][%mdl 8192]} (37. Ke2 $15 )f3 $1 $19 {[%emt 0:0:33]} 38. Ke1 {[%emt 0:2:47]} (38. Nc2 $142 Ra8 39. Ke1 )Re8 $19 {[%emt 0:0:24]} 39. Kf1 {[%emt 0:1:3]} Bd4 {[%emt 0:1:25]} 40. d6 {[%emt 0:2:45]} Be5 {[%emt 0:1:40]} ({Don't blunder} 40... Re2 $2 41. d7 Rxf2+ (41... Bxf2 42. d8=Q+ Kf7 43. Qd5+ Kg7 44. Qb7+ Kg8 45. Qa8+ Kg7 46. Qxf3 )42. Ke1 Re2+ 43. Kd1 $18 )41. Nb5 {[%emt 0:51:22]} Rd8 {[%emt 0:50:43]} 42. Be3 {[%emt 0:0:14]} Bxd6 {[%emt 0:0:5]} ({Weaker is} 42... Bxb2 43. Bxc5 Kf7 44. Ke1 $17 )43. Nxd6 {[%emt 0:0:13]} (43. Ke1 $142 Be5 44. Nc3 )Rxd6 $19 {[%emt 0:0:5]} 44. Kg1 {[%emt 0:0:2]} (44. Ke1 $142 Kf7 45. Bxc5 )Rb6 $19 {[%emt 0:1:8]} 45. Bxc5 {[%emt 0:0:31]} Rxb2 {[%emt 0:0:4]} 46. Be3 {[%emt 0:0:14] [#]} Rb4 $1 {[%emt 0:0:6]} 47. c5 {[%emt 0:0:32] [#]} Rh4 $1 {[%emt 0:0:6]} 48. c6 {[%emt 0:0:53]} Rc4 {[%emt 0:0:9]} 49. Kh2 {[%emt 0:0:2]} Kf7 {[%emt 0:0:9]} 50. Kg3 {[%emt 0:0:2]} Ke6 {[%emt 0:0:7]} 51. Kxf3 {[%emt 0:0:8]} Kf5 {[%emt 0:0:7]} 52. Kg3 {[%emt 0:0:21]} Rxc6 {[%emt 0:0:5]} 53. Bd2 {[%emt 0:0:52]} Rc4 {[%emt 0:0:24]} 54. f3 {[%emt 0:0:5]} Rd4 {[%emt 0:0:17]} 55. Bc1 {[%emt 0:0:35]} Rd1 {[%emt 0:0:4]} 56. Be3 {[%emt 0:0:4]} Re1 {[%emt 0:0:5]} 57. Bd2 {[%emt 0:0:11]} Rg1+ {[%emt 0:0:6]} 58. Kh4 {[%emt 0:0:5]} Rd1 {[%emt 0:0:5]} 0-1

[Event "57th Biel Festival MTO 2024"]
[White "Nurman,Alua"]
[Black "Macovei,Andrei"]
[Site "Biel"]
[Round "4.11"]
[Annotator "TA"]
[Result "1/2-1/2"]
[Date "2024.07.18"]
[WhiteElo "2274"]
[BlackElo "2479"]
[PlyCount "85"]
[TimeControl "60"]

{[%evp 18,85,29,18,22,24,29,18,16,25,16,16,15,0,-8,-17,0,0,0,0,0,0,0,12,61,53,41,15,20,12,14,12,55,58,61,65,62,18,72,71,70,71,76,74,90,77,91,66,100,89,109,102,118,79,90,91,82,93,79,0,86,97,97,75,83,78,144,65,74,72]} 1. e4 {[%emt 0:2:35]} e5 {[%emt 0:2:35]} 2. Nf3 {[%emt 0:0:12]} Nc6 {[%emt 0:0:5]} 3. Bb5 {[%emt 0:0:17]} a6 {[%emt 0:0:5]} 4. Ba4 {[%emt 0:0:6]} Nf6 {[%emt 0:0:14]} 5. O-O {[%emt 0:0:14]} d6 {[%emt 0:1:37]} 6. c3 {[%emt 0:2:20]} Bd7 {[%emt 0:1:25]} 7. Re1 {[%emt 0:5:24]} g6 {[%emt 0:0:13]} 8. d4 {[%emt 0:2:22]} Bg7 {[%emt 0:0:28]} 9. Nbd2 {[%emt 0:3:43]} O-O {[%emt 0:0:31]} 10. h3 {[%emt 0:8:6]} exd4 {[%emt 0:1:39]} 11. cxd4 {[%emt 0:7:45]} Nb4 {[%emt 0:2:21]} 12. Bxd7 {[%emt 0:0:46]} Qxd7 {[%emt 0:0:6] The position is equal.} 13. Qb3 {[%emt 0:1:10] Dodges Nd3} a5 {[%emt 0:0:33]} 14. a3 {[%emt 0:0:41]} Nc6 {[%emt 0:1:26]} 15. Nf1 {[%emt 0:6:3]} (15. Qxb7 $2 {too greedy.} Rfb8 $19 )a4 {[%emt 0:12:38]} 16. Qc2 {[%emt 0:3:4]} (16. Qxb7 $2 {loses.} Rfb8 $19 )Na5 {[%emt 0:11:28]} 17. Bg5 {[%emt 0:2:29]} Qc6 {[%emt 0:8:38]} 18. Qd3 {[%emt 0:3:54]} Rfe8 {[%emt 0:12:59][%cal Rf6e4]} 19. Rac1 {[%emt 0:11:19]} Qb6 {[%emt 0:0:22]} 20. N1d2 {[%emt 0:4:46]} c6 {[%emt 0:3:26]} (20... Nd7 $11 {is more appropriate.} )21. e5 $14 {[%emt 0:10:48]} dxe5 {[%emt 0:2:10]} 22. dxe5 {[%emt 0:0:5]} Nd5 {[%emt 0:0:46]} 23. Qc2 {[%emt 0:5:45][%cal Od2e4]} Nb3 $1 {[%emt 0:3:29]} 24. Nxb3 {[%emt 0:1:29]} axb3 {[%emt 0:20:8]} (24... Qxb3 {simplifies} 25. Qxb3 axb3 26. Rcd1 Ra5 )25. Qc4 {[%emt 0:1:36]} Ra5 {[%emt 0:1:1]} 26. Bd2 $36 {[%emt 0:2:8][%mdl 2048] White has the initiative.} Raa8 {[%emt 0:0:23]} 27. Be3 {[%emt 0:6:16]} Qa5 {[%emt 0:14:53]} (27... Qa6 $1 $11 {remains equal.} )28. Qxb3 $16 {[%emt 0:3:49]} Nxe3 {[%emt 0:0:28]} 29. Qxe3 {[%emt 0:2:36]} Rad8 {[%emt 0:0:38]} 30. Rc4 {[%emt 0:2:8]} Qa6 {[%emt 0:1:37]} 31. Re4 {[%emt 0:2:17]} Qd3 {[%emt 0:0:29]} 32. Qb6 {[%emt 0:0:17]} Qd7 {[%emt 0:1:25]} 33. Rb4 {[%emt 0:5:10]} Bf8 {[%emt 0:1:24]} 34. Rd4 {[%emt 0:0:20]} Qe7 {[%emt 0:0:18]} 35. Rde4 {[%emt 0:0:14]} Qc5 {[%emt 0:1:26]} 36. Qb3 {[%emt 0:0:21]} Qd5 {[%emt 0:0:12]} 37. Qe3 {[%emt 0:1:45]} Bg7 {[%emt 0:0:57]} 38. Qb6 {[%emt 0:0:34][%cal Oe4d4] [#] Hoping for Rd4!} Qd7 {[%emt 0:0:19]} 39. Ng5 {[%emt 0:1:29]} Qe7 {[%emt 0:1:21]} 40. h4 {[%emt 0:1:53] White is much more active.} h6 {[%emt 0:2:26]} 41. Nf3 {[%emt 0:5:0][%cal Oe5e6]} Rd5 {[%emt 0:2:22] [#]} (41... Rd7 $142 )42. Qb3 {[%emt 0:5:1]} (42. e6 $1 $16 {[%cal Re6f7] Threatens to win with exf7+.} f5 43. Rb4 )Qd7 $14 {[%emt 0:3:18]} 43. Qc2 {[%emt 0:9:7] Weighted Error Value: White=0.11 (very precise) /Black=0.11 (very precise) .  Mistake:       	White=1     	Black=3      Inaccurate:     	White=3     	Black=2      OK:         	White=18    	Black=16     Best:        	---       	Black=1      Strong:       	---       	Black=1} 1/2-1/2

[Event "57th Biel Festival MTO 2024"]
[White "Harsha Bharathakoti"]
[Black "Thavandiran,Shiyam"]
[Site "Biel"]
[Round "4.12"]
[Annotator "TA"]
[Result "1-0"]
[Date "2024.07.18"]
[WhiteElo "2569"]
[BlackElo "2387"]
[PlyCount "81"]
[TimeControl "60"]

{[%evp 20,81,55,35,57,50,62,54,69,73,77,73,84,57,184,70,75,66,58,62,169,158,125,4,284,288,359,360,342,358,362,360,354,341,228,194,229,201,229,197,211,222,302,292,292,246,261,254,383,366,392,402,424,426,767,422,568,533,542,241,1715,1628,29971,8398]} 1. d4 {[%emt 0:7:3]} e6 {[%emt 0:4:29]} 2. c4 {[%emt 0:0:53]} Nf6 {[%emt 0:1:32]} 3. Nc3 {[%emt 0:0:7]} Bb4 {[%emt 0:0:17]} 4. Nf3 {[%emt 0:0:9]} O-O {[%emt 0:7:43]} 5. Bg5 {[%emt 0:0:37]} c5 {[%emt 0:1:22]} 6. Rc1 {[%emt 0:1:27]} cxd4 {[%emt 0:3:30] E21: Nimzoindisch (4.Sf3).} 7. Nxd4 {[%emt 0:0:45]} h6 {[%emt 0:17:14]} 8. Bh4 {[%emt 0:1:4]} g5 {[%emt 0:7:49]} 9. Bg3 {[%emt 0:0:22]} Ne4 {[%emt 0:0:12]} 10. e3 {[%emt 0:7:16]} Nc6 {[%emt 0:11:41]} 11. Bd3 {[%emt 0:5:22]} Nxg3 {[%emt 0:5:0]} 12. hxg3 {[%emt 0:2:15]} Kg7 $146 {[%emt 0:0:7]} ({Predecessor:} 12... Qf6 13. Kf1 Bxc3 14. Rxc3 Kg7 15. Bb1 b6 16. Nb5 Ba6 17. Nc7 Bxc4+ 18. Rxc4 Rac8 {1-0 Coelho,L (2392)-Santos,M (2402) Paulista-chT Interclubes 2008 (7)} )13. O-O {[%emt 0:20:54]} Be7 {[%emt 0:4:50]} 14. Bb1 {[%emt 0:23:44]} d6 {[%emt 0:11:47]} 15. Qc2 {[%emt 0:5:25]} Rh8 {[%emt 0:3:11]} 16. Rcd1 {[%emt 0:2:46]} Qb6 {[%emt 0:10:35]} (16... Nxd4 $1 $14 17. Rxd4 (17. exd4 d5 $14 )h5 )17. Ndb5 {[%emt 0:19:40]} (17. f4 $1 $18 )Ne5 $14 {[%emt 0:1:14]} 18. Na4 {[%emt 0:0:7]} Qc6 {[%emt 0:0:23]} 19. b3 {[%emt 0:0:3]} b6 {[%emt 0:6:48]} (19... g4 $14 )20. f4 $18 {[%emt 0:2:24]} Ng4 {[%emt 0:1:1] [#]} 21. Nd4 {[%emt 0:2:38]} ({Vorzuziehen ist} 21. fxg5 $1 $16 {[%cal Of1f7] Und jetzt Rxf7+! wäre schön.} Ne5 (21... Bxg5 22. Rxf7+ Kxf7 23. Qg6+ Kf8 24. Rf1+ Nf6 25. Be4 $18 )22. g6 )Qd7 $2 {[%emt 0:3:25][%mdl 8192] [#]} (21... Qe8 $1 $11 {und Schwarz muss sich keine Sorgen machen.} )22. f5 $1 $18 {[%emt 0:1:26]} e5 {[%emt 0:2:19]} 23. Ne6+ {[%emt 0:4:59]} (23. f6+ Nxf6 24. Nf5+ Kg8 $18 )Kg8 {[%emt 0:4:5]} (23... fxe6 $2 24. f6+ Bxf6 25. Qg6+ Kf8 26. Rxf6+ Ke7 27. Rf7+ Kd8 28. Rxd7+ $18 )24. Qe4 {[%emt 0:0:2]} Bb7 {[%emt 0:1:20]} 25. Qxg4 {[%emt 0:0:26]} h5 {[%emt 0:0:20]} 26. Qe2 {[%emt 0:0:27]} fxe6 {[%emt 0:0:34]} 27. f6 {[%emt 0:1:1]} Bf8 {[%emt 0:0:4]} 28. Bg6 {[%emt 0:0:31]} Qc6 {[%emt 0:1:0]} 29. Rf2 {[%emt 0:0:33]} (29. Bxh5 $2 Rxh5 30. Rd2 Rh6 $19 )Rh6 {[%emt 0:0:34]} 30. Bxh5 {[%emt 0:0:4]} Qe4 {[%emt 0:0:29]} 31. Nc3 {[%emt 0:0:44]} Qh7 {[%emt 0:0:6]} 32. f7+ {[%emt 0:0:42]} Kg7 {[%emt 0:0:22]} 33. g4 {[%emt 0:0:3]} Rc8 {[%emt 0:1:0]} (33... Bc6 $142 34. b4 a5 35. bxa5 (35. b5 Be4 $16 )Rxa5 )34. Nb5 $18 {[%emt 0:0:56]} d5 {[%emt 0:0:22]} 35. Nxa7 {[%emt 0:0:31]} Ra8 {[%emt 0:0:43]} 36. Nb5 {[%emt 0:0:4]} dxc4 {[%emt 0:0:25]} (36... Rc8 $142 37. Qf3 Kh8 )37. Qxc4 {[%emt 0:0:49]} Rxh5 {[%emt 0:0:21]} 38. gxh5 {[%emt 0:0:13]} Qxh5 {[%emt 0:0:8]} 39. Rd7 {[%emt 0:0:54]} (39. Rdd2 $142 g4 40. Qxe6 )Rc8 $2 {[%emt 0:0:16]} (39... g4 )40. Nc7 $18 {[%emt 0:0:13]} (40. Qxe6 Rc1+ 41. Rf1 Rxf1+ 42. Kxf1 Qh1+ 43. Ke2 Qxg2+ 44. Kd1 Qf1+ 45. Kd2 Bb4+ 46. Nc3 Bxc3+ 47. Kxc3 Qc1+ 48. Kd3 e4+ 49. Ke2 Ba6+ $19 )Bd5 {[%emt 0:1:17]} 41. Rxd5 {[%emt 0:3:40]} (41. Nxd5 $2 {geht unter.} Rxc4 42. bxc4 exd5 $19 )(41. Ne8+ $142 Kg6 42. Qxc8 (42. Rf6+ Kh7 $18 )Qh4 43. Nf6 Kg7 44. Nh5+ Kg6 45. Qxf8 Kxh5 46. Qh8+ Kg4 47. f8=Q (47. f8=R Qxh8 48. Rxh8 Bc6 49. Rg7 Be8 50. Rxe8 Kh5 51. Rxe6 Kh4 52. Rxe5 g4 53. Rf4 Kg3 54. Rgxg4# )(47. Qxh4+ Kxh4 48. f8=Q Kg4 49. Qh6 Bxg2 50. Kxg2 e4 51. Qh3# ))1-0